Cogmind - Beta 13 @@@ ROGUE MODE // 2024.05.11 @ 17:11:13 Player: 6tay9 Result: Destroyed by G-47 Trooper with Particle Gun Performance ------------- Evolutions (2) 1000 Regions Visited (5) 1000 Robots Destroyed (52) 260 Value Destroyed (1602) 1602 Prototype IDs (11) 220 Alien Tech Used (0) 0 Bonus (490) 490 TOTAL SCORE: 4572 Bonus ------- High Alert Combat Kills 130 Follower Combat Kills 60 Aligned with FarCom 300 Cogmind --------- Core Integrity 0/550 Matter 182/300 Energy 157/250 System Corruption 0% Temperature Warning (354) Movement Hovering (42) Location -8/Materials Parts ------- > --- POWER (1) -------- Ion Engine > --- PROPULSION (4) --- Improved Airjet Improved Airjet Improved Airjet Flight Unit > --- UTILITY (4) ------ Advanced Terrain Scan Processor Transport Network Coupler Hardened Light Armor Plating Hacking Suite > --- WEAPON (2) ------- Light Assault Rifle > --- INVENTORY (5) ---- Medium Matter Pod (100) Beam Rifle Precision Beam Rifle Precision Beam Rifle Datajack Peak State ------------ > --- POWER ------------ Nuclear Core > --- PROPULSION ------- Carbon-fiber Leg Carbon-fiber Leg Carbon-fiber Leg Carbon-fiber Leg > --- UTILITY ---------- Experimental Sensor Array Transport Network Coupler Shield Generator > --- WEAPON ----------- YOLO Cannon > --- INVENTORY -------- Medium Matter Pod Firepult Datajack Makeshift Spear [Rating: 49] Favorites ----------- Power Ion Engine Engine Ion Engine Power Core Nuclear Core Propulsion Flight Unit Leg Carbon-fiber Leg Wheel Wheel Hover Unit Backup Propulsion I Flight Unit Flight Unit Utility Transport Network Coupler Device Experimental Sensor Array Processor Transport Network Coupler Hackware Hacking Suite Protection Hardened Light Armor Plating Weapon YOLO Cannon Energy Gun Medium Laser Energy Cannon YOLO Cannon Ballistic Gun Light Assault Rifle Special Weapon Mining Laser Piercing Weapon Makeshift Spear Special Melee Weapon Datajack Build | -11 -10 -10 -10 -9 -8 ------- Run | Yrd Mat Min Exi Min Mat Slots Evolved 4 | . . . . . 4 Power . | . . . . . . Propulsion 2 | . . . . . 2 Utility 2 | . . . . . 2 Weapon . | . . . . . . Parts Attached 55 | 5 11 4 2 1 32 Power 6 | 1 . 1 . 1 3 Engine 4 | 1 . 1 . 1 1 Core 2 | . . . . . 2 Reactor . | . . . . . . Propulsion 22 | 2 5 . . . 15 Treads . | . . . . . . Leg 4 | . . . . . 4 Wheel 3 | 2 1 . . . . Hover 8 | . . . . . 8 Flight 7 | . 4 . . . 3 Utility 11 | . 6 1 . . 4 Device 6 | . 4 1 . . 1 Storage . | . . . . . . Processor 3 | . 2 . . . 1 Hackware 1 | . . . . . 1 Protection 1 | . . . . . 1 Artifact . | . . . . . . Weapon 16 | 2 . 2 2 . 10 Energy Gun 7 | 2 . . 1 . 4 Energy Cannon 2 | . . . 1 . 1 Ballistic Gun 2 | . . . . . 2 Ballistic Cannon . | . . . . . . Launcher . | . . . . . . Special Weapon 1 | . . 1 . . . Impact Weapon . | . . . . . . Slashing Weapon . | . . . . . . Piercing Weapon 3 | . . 1 . . 2 Special Melee Weapon 1 | . . . . . 1 Unidentified Prototypes 5 | . . 1 2 . 2 Parts Lost 16 | . . 3 . 2 11 Power 4 | . . 1 . 1 2 Propulsion 9 | . . 1 . 1 7 Utility 2 | . . . . . 2 Weapon 1 | . . 1 . . . Highest Loss Streak 5 | . . 3 . 2 5 To Critical Strikes . | . . . . . . Average Slot Usage (%) 74 | . 96 85 81 64 58 Engine 11 | . 14 13 14 13 2 Core 1 | . . . . . 4 Leg 2 | . . . . . 9 Wheel 1 | . 12 . . . . Hover 1 | . . . . . 8 Flight 9 | . 14 16 14 8 1 Device 11 | . 15 4 14 14 9 Processor 13 | . 10 23 14 14 9 Energy Gun 8 | . 28 14 10 . 1 Energy Cannon 5 | . . . 3 14 5 Piercing Weapon 4 | . . 10 10 . 1 Naked Turns . | . . . . . . Heaviest Build 28 | 6 8 10 24 28 28 Greatest Support 60 | 26 26 8 4 4 60 Greatest Overweight (x) 9 | . 1 2 5 9 9 Average Overweight (x) 1 | . . . 2 6 1 Largest Inventory Capacity 5 | 5 5 5 5 5 5 Average Capacity 5 | 5 5 5 5 5 5 Most Carried 5 | . 5 5 5 5 5 Average Carried 4 | . 2 4 4 5 4 Final Capacity 5 | 5 5 5 5 5 5 Final Carried 5 | . 5 5 5 5 5 Class Distribution -------------------- 57% | Mutant 41% | Skirmisher Dominant Class ---------------- Mutant | -10/Materials Mutant | -10/Mines Mutant | -10/Exiles Skirmisher | -9/Mines Skirmisher | -8/Materials Resources | -11 -10 -10 -10 -9 -8 ----------- Run | Yrd Mat Min Exi Min Mat Matter Collected 728 | 223 237 44 . 51 173 Remotely . | . . . . . . Salvage Created 1729 | . 257 . . 226 1246 Parts 93 | . 18 . . 10 65 Haulers Intercepted 2 | . 1 . . . 1 Recyclers Shooed . | . . . . . . Parts Field Recycled . | . . . . . . Retrieved Matter . | . . . . . . Parts Self-Destructed . | . . . . . . Prevented . | . . . . . . Kills | -11 -10 -10 -10 -9 -8 ------- Run | Yrd Mat Min Exi Min Mat Combat Hostiles Destroyed 33 | . 5 . . 5 23 Melee 4 | . . . . . 4 Guns 8 | . 5 . . . 3 Cannons 5 | . . . . 1 4 AOE 11 | . . . . 3 8 Classes Destroyed 12 | . 5 . . 2 5 Worker 2 | . . . . . 2 Builder 5 | . . . . 1 4 Tunneler 2 | . . . . . 2 Hauler 2 | . 1 . . . 1 Recycler 3 | . 1 . . 1 1 Mechanic 1 | . . . . . 1 Watcher 4 | . 1 . . . 3 Swarmer 6 | . 3 . . . 3 Grunt 20 | . 2 . . 4 14 Brawler 1 | . . . . 1 . Sentry 5 | . . . . . 5 Hunter 1 | . . . . . 1 Best Kill Streak 6 | . 3 . . 3 6 Combat Bots Only 4 | . 3 . . 2 4 Max Kills in Single Turn 4 | . 2 . . 2 4 Gunslinging 1 | . 1 . . . . Exploded 2 | . . . . 1 2 Melee 1 | . . . . . 1 Uniques/NPCs Destroyed . | . . . . . . Combat | -11 -10 -10 -10 -9 -8 -------- Run | Yrd Mat Min Exi Min Mat Hostile Shots Fired 250 | . 24 11 . 32 183 Missed 68 | . 9 3 . 10 46 Damage Taken 2290 | . 158 105 . 337 1690 Core 683 | . 52 12 . 55 564 Absorbed by Shields 73 | . . . . . 73 Regen/Repaired (Parts) 18 | . 18 . . . . Core Remaining (%) 76 | 100 . . . 52 . Volleys Fired 100 | . 27 9 . 9 55 Largest 2 | . 2 1 . 1 2 Hottest 250 | . 90 50 . 100 250 Shots Fired 136 | . 54 9 . 9 64 Gun 108 | . 54 9 . . 45 Cannon 28 | . . . . 9 19 Launcher . | . . . . . . Special . | . . . . . . Kinetic 11 | . . . . . 11 Thermal 125 | . 54 9 . 9 53 Explosive . | . . . . . . Electromagnetic . | . . . . . . Robot Hit Streak 9 | . 8 3 . 4 9 Robot Miss Streak 5 | . 4 2 . 1 5 Penetration Max . | . . . . . . Secondary Targets 1 | . 1 . . . . Max Gunslinging Chain 1 | . 1 . . . . Shots Hit Robots 96 | . 34 6 . 1 55 Core Hits 63 | . 15 1 . 6 41 Critical Kills 5 | . . . . 1 4 Critical Parts Destroyed . | . . . . . . Critical Strikes 12 | . 1 1 . 1 9 Burn 4 | . 1 1 . . 2 Meltdown 4 | . . . . 1 3 Destroy 1 | . . . . . 1 Impale 3 | . . . . . 3 Melee Attacks 25 | . . . . . 25 Impact . | . . . . . . Slashing . | . . . . . . Piercing 21 | . . . . . 21 Sneak Attacks 5 | . . . . . 5 Combat Hostiles . | . . . . . . Follow-up Attacks . | . . . . . . Damage Inflicted 4587 | . 401 74 . 718 3394 Guns 925 | . 401 74 . . 450 Cannons 1193 | . . . . 203 990 Explosions 1900 | . . . . 515 1385 Melee 569 | . . . . . 569 Ramming . | . . . . . . Kinetic 36 | . . . . . 36 Thermal 3982 | . 401 74 . 718 2789 Explosive . | . . . . . . Electromagnetic . | . . . . . . Impact . | . . . . . . Slashing . | . . . . . . Piercing 569 | . . . . . 569 Highest Corruption 1 | . . . . 1 . Average Corruption 1 | . . . . 1 . Corruption Purged . | . . . . . . Corruption Blocked . | . . . . . . Effects 8 | . . . . 8 . Message Errors 2 | . . . . 2 . Matter Fused 1 | . . . . 1 . Heat Flow Errors 2 | . . . . 2 . Energy Discharges 1 | . . . . 1 . Data Loss (major) 1 | . . . . 1 . Alerts 1 | . . . . 1 . Overload Shots . | . . . . . . Overflow Damage 300 | . . . . 95 205 Projectiles 179 | . . . . 60 119 Explosions 84 | . . . . 35 49 Melee 37 | . . . . . 37 Knockbacks . | . . . . . . Impact . | . . . . . . Kinetic . | . . . . . . Secondary . | . . . . . . Self-Inflicted Damage 44 | . . . . . 44 Shots 3 | . . . . . 3 Rammed . | . . . . . . Targets Rammed . | . . . . . . Kicked . | . . . . . . Crushed . | . . . . . . Highest Temperature 574 | . 168 187 . 275 574 Average Temperature 97 | . 77 93 . 73 127 Received Heat Transfer 952 | . 54 78 . 159 661 Effects 6 | . . . . . 6 Shutdowns 3 | . . . . . 3 Energy Bleed 1 | . . . . . 1 Short Circuit 1 | . . . . . 1 Damage (minor) 1 | . . . . . 1 Siege Activations . | . . . . . . Robots Corrupted . | . . . . . . Combat Hostiles . | . . . . . . Parts Fried . | . . . . . . Impact Corruptions . | . . . . . . Robots Melted 5 | . . . . 1 4 Combat Hostiles 5 | . . . . 1 4 Parts Melted 12 | . 1 . . 2 9 Heat Transferred 6000 | . 1117 296 . 880 3707 Parts Sabotaged . | . . . . . . Parts Stolen . | . . . . . . Parts Stripped . | . . . . . . Power Chain Reactions . | . . . . . . Alert | -11 -10 -10 -10 -9 -8 ------- Run | Yrd Mat Min Exi Min Mat Peak Influence 687 | . 173 53 . 128 687 Initial . | . . . . . . Average 136 | . 39 12 . 31 388 Maximum Alert Level 2 | . . . . . 2 Low Security (%) 74 | 100 100 100 . 100 13 Level 1 3 | . . . . . 12 Level 2 22 | . . . . . 73 Level 3 . | . . . . . . Level 4 . | . . . . . . Level 5 . | . . . . . . High Security . | . . . . . . Max Security . | . . . . . . Squads Dispatched 10 | . 3 . . . 7 Investigation 4 | . 2 . . . 2 Extermination . | . . . . . . Reinforcement 5 | . 1 . . . 4 Assault 1 | . . . . . 1 Garrison . | . . . . . . Intercept . | . . . . . . Searches Triggered . | . . . . . . Construction Impeded . | . . . . . . Haulers Reinforced . | . . . . . . Active Scanning Responses . | . . . . . . Cargo Convoy Interrupts . | . . . . . . Stealth | -11 -10 -10 -10 -9 -8 --------- Run | Yrd Mat Min Exi Min Mat Distress Signals 3 | . 2 . . . 1 Communications Jammed . | . . . . . . Distress Signals . | . . . . . . Times Spotted 58 | . 10 4 . 5 39 Peak Tracking Total 7 | . 3 2 . 3 7 Tactical Retreats 7 | . 3 1 . 1 2 Traps | -11 -10 -10 -10 -9 -8 ------- Run | Yrd Mat Min Exi Min Mat Traps Triggered 2 | . 1 . . 1 . Indirectly . | . . . . . . Trap Hack Attempts . | . . . . . . Triggered . | . . . . . . Disarmed . | . . . . . . Reprogrammed 4 | . . . . . 4 Reused 1 | . . . . . 1 Traps Extracted . | . . . . . . Installed . | . . . . . . Triggered 1 | . . . . . 1 Machines | -11 -10 -10 -10 -9 -8 ---------- Run | Yrd Mat Min Exi Min Mat Machines Disabled 6 | . . . . 1 5 Max in Single Turn 2 | . . . . 1 2 Garrison Access 1 | . . . . . 1 Machines Repaired . | . . . . . . Machines Dismantled . | . . . . . . Machines Sabotaged . | . . . . . . Overloaded Fab Kills . | . . . . . . Hacking | -11 -10 -10 -10 -9 -8 --------- Run | Yrd Mat Min Exi Min Mat Machines Accessed 19 | . 9 . 2 1 7 Terminals 12 | . 7 . . . 5 Fabricators . | . . . . . . Repair Stations 1 | . 1 . . . . Recycling Units 2 | . 1 . . . 1 Scanalyzers 1 | . . . . . 1 Garrison Access . | . . . . . . Total Hacks 57 | . 23 . 14 1 19 Successful 40 | . 12 . 14 1 13 Failed 17 | . 11 . . . 6 Catastrophic 2 | . . . . . 2 Database Lockouts . | . . . . . . Manual 1 | . . . 1 . . Terminals 37 | . 20 . . . 17 Fabricators . | . . . . . . Repair Stations 2 | . 2 . . . . Recycling Units 2 | . 1 . . . 1 Scanalyzers 1 | . . . . . 1 Garrison Access . | . . . . . . Terminal Hacks 35 | . 9 . 14 1 11 Record 15 | . 1 . 14 . . Prototype ID Bank 3 | . 2 . . . 1 Open Door 1 | . . . . 1 . Level Access Points 1 | . 1 . . . . Emergency Access Points 2 | . 1 . . . 1 Locate Traps 4 | . 1 . . . 3 Reprogram Traps 1 | . . . . . 1 Dispatch Records 1 | . 1 . . . . Maintenance Status 1 | . 1 . . . . Reinforcement Status 1 | . . . . . 1 Hauler Manifests 3 | . 1 . . . 2 Zone Layout 2 | . . . . . 2 Fabricator Hacks . | . . . . . . Repair Station Hacks 2 | . 2 . . . . Scan Component 1 | . 1 . . . . Repair 1 | . 1 . . . . Recycling Unit Hacks 2 | . 1 . . . 1 Recycle Component 1 | . 1 . . . . Retrieve Matter 1 | . . . . . 1 Scanalyzer 1 | . . . . . 1 Insert Component 1 | . . . . . 1 Garrison Access Hacks . | . . . . . . Unauthorized Hacks . | . . . . . . Terminals . | . . . . . . Fabricators . | . . . . . . Repair Stations . | . . . . . . Recycling Units . | . . . . . . Scanalyzers . | . . . . . . Garrison Access . | . . . . . . Data Cores Recovered . | . . . . . . Used . | . . . . . . Hacking Detections 11 | . 7 . . . 4 Full Trace Events 6 | . 3 . . . 3 Feedback Events . | . . . . . . Feedback Blocked . | . . . . . . Robot Schematics Acquired . | . . . . . . Robots Built . | . . . . . . Authchips . | . . . . . . Time . | . . . . . . Total Robot Build Rating . | . . . . . . Part Schematics Acquired . | . . . . . . Parts Built . | . . . . . . Authchips . | . . . . . . Time . | . . . . . . Total Part Build Rating . | . . . . . . Parts Repaired 1 | . 1 . . . . Time 26 | . 26 . . . . Parts Recycled 1 | . 1 . . . . Recycled Matter . | . . . . . . Retrieved Matter . | . . . . . . Retrieved Components . | . . . . . . Parts Scanalyzed . | . . . . . . Part Schematics Acquired . | . . . . . . Parts Damaged . | . . . . . . Bothacking | -11 -10 -10 -10 -9 -8 ------------ Run | Yrd Mat Min Exi Min Mat Used RIF Installer . | . . . . . . Robots Hacked 2 | . . . . . 2 Non-combat 1 | . . . . . 1 Combat 1 | . . . . . 1 Robot Hacks Applied 2 | . . . . . 2 parse_system 2 | . . . . . 2 Relay Couplers Released 2 | . . . . . 2 Machine Destruction 2 | . . . . . 2 Fabnet Peak Effective % . | . . . . . . Robots Rewired . | . . . . . . Allies Hacked . | . . . . . . Hacks Repelled . | . . . . . . Allies | -11 -10 -10 -10 -9 -8 -------- Run | Yrd Mat Min Exi Min Mat Total Allies 1 | . . 1 . . . Largest Group 1 | . . 1 . . . Highest-Rated Group 31 | . . 31 . . . Highest-Rated Ally 31 | . . 31 . . . Total Orders . | . . . . . . Ally Attacks 5 | . . 5 . . . Total Damage 64 | . . 64 . . . Kills 2 | . . 2 . . . Allies Corrupted . | . . . . . . Allies Melted . | . . . . . . Intel | -11 -10 -10 -10 -9 -8 ------- Run | Yrd Mat Min Exi Min Mat Robot Analysis Total . | . . . . . . Derelict Logs Recovered 1 | . . 1 . . . Drone Launches . | . . . . . . Drone Recoveries . | . . . . . . Exploration | -11 -10 -10 -10 -9 -8 ------------- Run | Yrd Mat Min Exi Min Mat Turns Passed 7082 | 82 810 982 1717 1874 1617 Spaces Moved 4248 | 83 1324 809 743 403 886 Core 302 | 1 . . . 158 143 Treads . | . . . . . . Legs 389 | . . . . . 389 Wheels 463 | 82 381 . . . . Hover 326 | . . . . . 326 Flight 2768 | . 943 809 743 245 28 Fastest Speed 37 | 50 37 37 120 350 37 Average Speed 155 | 89 52 114 230 456 150 Slowest Speed 500 | 100 125 200 440 500 500 Overloaded Moves . | . . . . . . Propulsion Burnouts . | . . . . . . Robots Hopped 7 | . 6 1 . . . Cave-ins Triggered . | . . . . . . Exploration Rate (%) 69 | 3 98 96 93 61 63 Regions Visited 5 Branch Regions 3 Pre-discovered Areas 1 | . . . 1 . . Known Exits Taken . | . . . . . . Unknown Exits Taken 5 | 1 1 1 1 1 . Scrap Searched 4 | . . 1 . 3 . Spaces Dug 64 | . . . . 64 . Terrain Destroyed 349 | . . . . 122 227 Melee . | . . . . . . Projectile 17 | . . . . 7 10 AOE 332 | . . . . 115 217 Terrain Rammed . | . . . . . . Walls Destroyed . | . . . . . . Machines Disabled . | . . . . . . Actions | -11 -10 -10 -10 -9 -8 --------- Run | Yrd Mat Min Exi Min Mat Total 4521 | 87 1380 853 750 413 1038 Wait 57 | . 8 27 . 1 21 Move 4229 | 82 1311 806 742 402 886 Hop 7 | . 6 1 . . . Pick Up 16 | . 9 3 1 . 3 Fast Attach 40 | 5 6 3 1 1 24 Attach 6 | . . . . . 6 Detach 8 | . . . 1 . 7 Swap 9 | . 5 1 1 . 2 Drop 24 | . 8 3 4 . 9 Fire 100 | . 27 9 . 9 55 Melee 25 | . . . . . 25 Ram . | . . . . . . Kick . | . . . . . . Crush . | . . . . . . Escape Stasis . | . . . . . . Rewire . | . . . . . . Trap . | . . . . . . Miscellaneous . | . . . . . . Route ------- -11/Scrapyard -10/Materials (discovered 4 exits: *Mat x3 / [*Min]) -10/Mines (discovered 3 exits: *Mat x2 / *Exi) -10/Exiles -9/Mines (discovered 2 exits: *Mat x2) -8/Materials (discovered 3 exits: [*Fac x2] / [*Sto]) History --------- Turn | Location | Event 19 | -11/Scrapyard | Discovered new exit (range 16) 83 | -11/Scrapyard | Entered Materials 312 | -10/Materials | Build established: Mutant 369 | -10/Materials | Repaired Com. Wheel? 433 | -10/Materials | Discovered new exit (range 5) 533 | -10/Materials | Discovered new exit (range 10) 711 | -10/Materials | Discovered new exit (range 7) 731 | -10/Materials | Discovered new exit (range 7) 815 | -10/Materials | Identified exit to Materials 893 | -10/Materials | Entered Mines 893 | -10/Mines | Discovered exit to Materials (range 16) 896 | -10/Mines | Received a Mining Laser from a helpful Derelict 908 | -10/Mines | YI-UF0 nonchalantly dropped a Grenade Launcher on the ground 987 | -10/Mines | Learned 2 Materials zone layouts 997 | -10/Mines | A weapon hastily lodged in a ceiling crevice suddenly fell to the ground 1099 | -10/Mines | Lost 3 parts (1p1n1w) 1329 | -10/Mines | Deemed a non-threat by the Exiles lab entrance 1329 | -10/Mines | Discovered new exit (range 5) 1527 | -10/Mines | Found a damaged Exp. Sensor Array with a note attached 1532 | -10/Mines | Found Prototype Device 1555 | -10/Mines | Identified Exp. Sensor Array 1627 | -10/Mines | Discovered exit to Materials (range 11) 1875 | -10/Mines | Entered Exiles 1929 | -10/Exiles | Met 8R-AWN 1965 | -10/Exiles | Met EX-HEX 2043 | -10/Exiles | Met EX-DEC 2107 | -10/Exiles | Learned location of Zion (-7) 2179 | -10/Exiles | Discovered new exit (range 14) 2306 | -10/Exiles | Visited The Gauntlet 2743 | -10/Exiles | Met EX-BIN 2773 | -10/Exiles | Aligned with FarCom system 2775 | -10/Exiles | Given EX-Vault access code 3141 | -10/Exiles | Opened EX-Vault 3164 | -10/Exiles | Found Prototype Energy Cannon 3169 | -10/Exiles | Found Prototype Energy Cannon 3169 | -10/Exiles | Identified YOLO Cannon 3258 | -10/Exiles | Warned to stay clear of 0b10 Research branches 3592 | -10/Exiles | Stole two prototypes: YOLO Cannon, Firepult 3592 | -10/Exiles | Entered Mines 3841 | -9/Mines | Discovered new exit (range 13) 3893 | -9/Mines | Build established: Skirmisher 4402 | -9/Mines | Met a Derelict who couldn't figure out how to use a Trap Extractor 5018 | -9/Mines | Received a Rocket Launcher from a helpful Derelict 5166 | -9/Mines | Discovered new exit (range 8) 5466 | -9/Mines | Entered Materials 5466 | -8/Materials | Evolved 4 slots: Propulsion x2, Utility x2 5560 | -8/Materials | Identified Firepult 5973 | -8/Materials | Discovered new exit (range 10) 6561 | -8/Materials | Discovered new exit (range 5) 6612 | -8/Materials | Discovered new exit (range 13) 6785 | -8/Materials | Build established: Mutant 6840 | -8/Materials | Core integrity fell below 50% 6904 | -8/Materials | Core integrity fell below 20% 6946 | -8/Materials | Lost 5 parts (5n) 7083 | -8/Materials | Destroyed by G-47 Trooper with Particle Gun Last Messages --------------- Overheating: Short circuit. K-01 Serf collects debris. Overheating: Energy bleed (-18). Power failure, Ion Engine shutdown. K-01 Serf cleans the Repair Station. U-05 Engineer builds a Door. K-01 Serf cleans the Repair Station. Critical hit (Burn: +37). G-47 Trooper suffers critical hit (Burn). Power failure, Ion Engine shutdown. G-47 Trooper overheating. K-01 Serf cleans the Repair Station. G-47 Trooper overheating. Overheating: Flight Unit damaged (-1). G-47 Trooper heat damages Particle Gun. G-47 Trooper overheating. K-01 Serf cleans the Repair Station. Power failure, Ion Engine shutdown. G-47 Trooper suffers critical hit (Destroy). G-47 Trooper destroyed. Map ----- +----------------------------------------------------+ | / # #?# =! !!#???????# # #???? | | """ # ### #???????# # +????"" """ | | "" # ### ######### = # #????"" """ | | " %+%[ % + "T" a #????"" """ | | """ #* ########+#### """ # #???? | | ##### # ## # # #????###### | | #??## # ## "T" ######## #?????????? | | #??## # ## """ #?????? #???###### | | ##+#######??# # ## #?????# ?? | | # #??# # #########?????# ? | | # #??# # ## ??????# | | # #??# # ## "" ??????# # ####+# | | # #??# ##+### "" ??????####### ## | | # #### # "T ????????????? #????? | | # """ ##"" * + "" ?????????????? #????? | | # """ ##"T ^ """%!# "" ?????????????? #????? | | # """ ##"" "R" # ??Y???????????? #????? | | # #### " " # ????????????????#????? | | #####+####### ^% # ?????????????x???????? | | # ^ ##########??????????????????? | | # ^ """ # "T" #??????????????????? | | + ##+####### ^ """ # #??????????????????? | | # # ## """ # #??????????????????? | | # # """"" ## # #??????????????????? | | #### """"" ## ##+#/#####???????????H??????? | | #??# """"" ##! =g @####???????????????????? | | #??# ## ! #???????????????????? | | #??# ## ##+###### #???????????????????? | | #??# !## # ## ####????????????????? | | ???# ## # """ ## #????????????????? | | ???# ""T"" ## + """ ########+####?????????????? | | ???# """"" + # """ #????# #?????????????? | | ???# ###### ###### #?????????????? | | ???#########????# + + """ #?????????????? | | ????????????????############# """ #?????????????? | | ????????????????????????????# """ #?????????????? | | ????????????????????????????#! #?????????????? | | ????????????????????????????########?????????????? | | | | | | | | | | | | | | | | | | | | | | | | | +----------------------------------------------------+ Best States ------------- Heat Dissipation 39 Energy Generation 18 Energy Capacity 250 Matter Stores 300 Matter Capacity 300 Sight Range 16 Robot Scan Range 20 Terrain Scan Density 210 Armor Coverage 150 Evasion (%) 62 Offensive Hacking 10 Item Schematics ----------------- None Robot Schematics ------------------ None Fabricated ------------ Nothing Alien Tech Used ----------------- None Achievements -------------- Librarian Loot Pinata Part-time Mechanic Remodeling Shopping List Tourist Challenges ------------ None Game ------ Seed ColdUltimateHammer Manual? 0 Play Time 01:24:17 Cumulative 4.4 hours Start 2024.05.11 @ 15:35:24 End 2024.05.11 @ 17:11:13 Sessions 1 Manual Loads 0 Difficulty Rogue Special Mode None Game No. 4 Rogue 4 Adventurer 0 Explorer 0 Win Type - Total 0 Types 0/0/0/0/0/0/0/0/0 Lore% 4 Gallery% 7 Achievement% 7 Wizard Run 0 Options --------- Layout 1 ASCII 1 Keyboard 1 Movement Vi Keybinds 0 Fullscreen 2 Font 24/X11 Map View 50x35 Zoom Use 0% Tactical HUD 0 Map Filters NONE Filters NONE Steam 1 RUN: 54649e54-3ef2-4100-8259-1f57acc56473